[Event "Champions Showdown Kings Blitz 2019-C"]
[Site "Saint Louis"]
[Date "2019.02.22"]
[Round "7"]
[White "Navara, David"]
[Black "So, Wesley"]
[Result "1-0"]
[ECO "E20"]
[WhiteElo "2738"]
[BlackElo "2765"]
[Annotator "RC"]
[PlyCount "109"]
[EventDate "2019.02.09"]
[EventType "match"]
[EventCountry "USA"]
[SourceTitle "playchess.com"]
[Source "ChessBase"]
[SourceQuality "1"]
[TimeControl "900+10"]

1. d4 {[%emt 0:12:07]} Nf6 {[%emt 0:12:07]} 2. c4 {[%emt 0:00:09]} e6 {[%emt 0:00:08]} 3. Nc3 {[%emt 0:00:09]} Bb4 {[%emt 0:00:09]} 4. Nf3 {[%emt 0:00:09]} c5 {[%emt 0:00:09]} 5. g3 {[%emt 0:00:10]} cxd4 {[%emt 0:00:09]} 6. Nxd4 {[%emt 0:00:09]} O-O {[%emt 0:00:09]} 7. Bg2 {[%emt 0:00:09]} d5 {[%emt 0:00:09]} 8. O-O {[%emt 0:00:10]} dxc4 {[%emt 0:00:09]} 9. Qa4 {[%emt 0:00:09]} Na6 {[%emt 0:00:11]} 10. Ndb5 {[%emt 0:00:09]} Nd5 {[%emt 0:00:17]} 11. Rd1 {[%emt 0:00:09]} Qe8 {[%emt 0:00:09]} 12. Nxd5 {[%emt 0:00:47]} exd5 {[%emt 0:00:09]} 13. Rxd5 {[%emt 0:00:11]} Bd7 {[%emt 0:00:08]} 14. Be3 {[%emt 0:00:25]} Bc6 {[%emt 0:00:10]} 15. Rf5 {[%emt 0:00:09]} Bxg2 {[%emt 0:00:09]} 16. Kxg2 {[%emt 0:00:09]} Qc6+ {[%emt 0:00:12]} 17. Kg1 {[%emt 0:00:15]} Be7 {[%emt 0:00:48]} 18. Nc3 {[%emt 0:00:27]} Qxa4 {[%emt 0:00:15]} 19. Nxa4 {[%emt 0:00:10]} g6 {[%emt 0:00:22]} 20. Rd5 {[%emt 0:00:41]} Bf6 {[%emt 0:00:10]} 21. Rc1 {[%emt 0:00:16]} Rfc8 {[%emt 0:00:12]} 22. Rd7 {[%emt 0:00:27]} b5 {[%emt 0:00:28]} 23. Rd6 {[%emt 0:00:17]} bxa4 {[%emt 0:00:28]} 24. Rxf6 {[%emt 0:00:10]} Nb4 {[%emt 0:00:08]} 25. Rf4 {[%emt 0:00:34]} Nd5 {[%emt 0:00:12]} 26. Rfxc4 {[%emt 0:00:09]} Rxc4 {[%emt 0:00:09]} 27. Rxc4 {[%emt 0:00:09]} Nxe3 {[%emt 0:00:09]} 28. fxe3 {[%emt 0:00:10]} Rb8 {[%emt 0:00:09]} 29. Rxa4 {[%emt 0:00:09]} Rxb2 {[%emt 0:00:08]} 30. Kf2 {[%emt 0:00:09]} Rb7 {[%emt 0:00:09]} 31. g4 {[%emt 0:00:14]} Kg7 {[%emt 0:00:22]} 32. Ra6 {[%emt 0:00:09]} Kf8 {[%emt 0:00:20]} 33. Kf3 {[%emt 0:00:10]} Re7 {[%emt 0:00:09]} 34. Kf4 {[%emt 0:00:17]} Kg7 {[%emt 0:00:10]} 35. h4 {[%emt 0:00:14]} Rb7 {[%emt 0:00:12]} 36. a4 {[%emt 0:00:12]} Rb4+ {[%emt 0:00:14]} 37. e4 {[%emt 0:00:09]} Rb7 {[%emt 0:00:13]} 38. e5 {[%emt 0:00:10]} Rb4+ {[%emt 0:00:09]} 39. e4 {[%emt 0:00:10]} Rb7 {[%emt 0:00:09]} 40. e6 {[%emt 0:00:13]} Kf6 {[%emt 0:00:33]} 41. g5+ {[%emt 0:00:16]} Ke7 {[%emt 0:00:09]} 42. exf7 {[%emt 0:00:10]} Kxf7 {[%emt 0:00:09]} 43. Ke5 {[%emt 0:00:14]} Ke7 {[%emt 0:00:12]} 44. Rc6 {[%emt 0:00:11]} Rd7 {[%emt 0:00:16]} 45. a5 {[%emt 0:00:11]} Rb7 {[%emt 0:00:10]} 46. a6 {[%emt 0:00:12]} Rb5+ {[%emt 0:00:16]} 47. Kf4 {[%emt 0:00:09]} Kd7 {[%emt 0:00:10]} 48. Rf6 {[%emt 0:00:09]} Ke7 {[%emt 0:00:09]} 49. h5 {[%emt 0:00:08]} gxh5 {[%emt 0:00:36]} 50. Rh6 {[%emt 0:00:10]} Kf7 {[%emt 0:00:09]} 51. Rxh7+ {[%emt 0:00:09]} Kg6 {[%emt 0:00:09]} 52. Rxa7 {[%emt 0:00:13]} Ra5 {[%emt 0:00:12]} 53. Ra8 {[%emt 0:00:09]} h4 {[%emt 0:00:10]} 54. a7 {[%emt 0:00:10]} Kg7 {[%emt 0:00:09]} 55. Kg4 {[%emt 0:00:10]} 1-0